bitfinex-derivatives/quotes_SOLF0:USTF0_20250124
["timestamp","ask_amount","ask_price","bid_price","bid_amount"]
[1737709315964,0.02836581,264.05,264.0,0.02443765]
[1737709318066,0.02836581,264.05,264.01,3.7878]
[1737709318266,0.02836581,264.05,264.0,0.02443765]
[1737709319066,3.81566581,264.05,264.0,0.02443765]
[1737709319366,0.02836581,264.05,264.0,0.02443765]
[1737709319568,3.7879,264.01,264.0,0.02443765]
[1737709320266,3.81576581,264.05,264.0,0.02443765]
[1737709320466,0.02836581,264.05,264.0,0.02443765]
[1737709321968,3.7879,264.01,264.0,0.02443765]
[1737709323575,3.7879,264.01,264.0,3.765e-05]
[1737709324074,14.6781726,264.04,263.89,3.7895]
[1737709324373,14.6781726,264.04,263.79,14.6781726]
[1737709324575,3.7886,263.96,263.8,0.67731571]
[1737709324774,14.6781726,264.04,263.88,3.7897]
[1737709325274,14.6781726,264.04,263.79,14.6781726]
[1737709325275,3.789,263.94,263.86,3.79]
[1737709325472,14.6781726,264.04,263.86,3.79]
[1737709325774,0.02513465,263.93,263.85,3.7901]
[1737709326271,0.02513465,263.93,263.79,14.6781726]
[1737709326472,0.02513465,263.93,263.8,0.67714549]
[1737709326669,0.02513465,263.93,263.84,14.6781726]
[1737709326874,4.9432,264.08,263.84,14.6781726]
[1737709327174,4.9432,264.08,263.85,0.67667603]
[1737709327575,4.9432,264.08,263.92,3.7891]
[1737709327767,4.9432,264.08,263.84,14.6781726]
[1737709327970,0.0264332,264.03,263.97,0.02648393]
[1737709328770,0.0264332,264.03,263.98,3.7883]
[1737709330370,0.0264332,264.03,263.97,0.02648393]
[1737709331579,3.7881,264.0,263.97,0.02648393]
[1737709331778,0.0264332,264.03,263.97,0.02648393]
[1737709332670,2.6331,264.14,263.97,0.02648393]
[1737709332970,14.6781726,264.24,264.08,3.7868]
[1737709333174,14.6781726,264.2,264.01,14.6781726]
[1737709333375,14.6781726,264.2,263.96,14.6781726]
[1737709333876,14.6781726,264.1,264.05,5.191e-05]
[1737709334074,7.7999,264.09,264.05,5.191e-05]
[1737709334270,7.7999,264.09,263.92,5.12059271]
[1737709334482,14.6781726,264.05,263.92,5.12059271]
[1737709334770,14.6781726,264.38,264.04,14.6781726]
[1737709334976,7.6271,264.36,264.17,14.6781726]
[1737709335176,3.7841,264.28,264.12,18.4644726]
[1737709335377,14.6781726,264.33,264.06,14.6781726]
[1737709335579,0.02529839,264.23,264.17,0.02461359]
[1737709335779,14.6781726,264.33,264.11,14.6781726]
[1737709335978,14.6781726,264.33,264.17,0.02509963]
[1737709335979,0.0274615,264.23,264.17,0.02509963]
[1737709336176,0.0274615,264.23,264.16,14.6781726]
[1737709336371,3.7834,264.33,264.18,3.7854]
[1737709336577,0.02438223,264.22,264.16,14.6781726]
[1737709336773,7.6271,264.36,264.23,0.02453276]
[1737709337076,0.02909908,264.22,264.16,14.6781726]
[1737709337276,7.6271,264.36,264.27,0.02581868]
[1737709337477,7.6271,264.36,264.16,14.6781726]
[1737709337879,0.02902785,264.29,264.23,0.02449616]
[1737709338075,7.6271,264.36,264.21,14.6781726]
[1737709338279,2.4364,264.39,264.26,14.6781726]
[1737709338479,191.0,264.56,264.31,14.6781726]
[1737709338480,14.6781726,264.54,264.31,14.6781726]
[1737709338676,14.6781726,264.54,264.26,14.6781726]
[1737709338881,14.6781726,264.49,264.26,14.6781726]
[1737709339080,14.6781726,264.54,264.31,14.6781726]
[1737709339381,3.782,264.43,264.31,14.6781726]
[1737709339582,3.782,264.43,264.4,0.02839158]
[1737709339880,0.02540565,264.44,264.39,0.02570811]
[1737709340386,14.70357825,264.44,264.21,14.6781726]
[1737709340684,2.4649,264.43,264.21,14.6781726]
[1737709341483,3.7834,264.33,264.29,0.02413282]
[1737709341686,0.02604344,264.35,264.29,0.02413282]
[1737709342183,3.7852,264.2,264.15,14.6781726]
[1737709342485,14.6781726,264.34,264.15,14.6781726]
[1737709343082,3.7849,264.22,264.15,14.6781726]
[1737709343387,0.02833884,264.27,264.15,14.6781726]
[1737709343586,14.6781726,264.34,264.15,14.6781726]
[1737709343788,0.02752517,264.24,264.15,14.6781726]
[1737709343988,3.7852,264.2,264.15,14.6781726]
[1737709344181,3.7852,264.2,264.1,14.6781726]
[1737709344688,0.02696825,264.18,264.1,14.6781726]
[1737709347292,0.02696825,264.18,264.15,14.6781726]
[1737709347482,2.4643,264.32,264.01,6.68856592]
[1737709347791,3.7844,264.26,264.12,3.7863]
[1737709347990,2.4643,264.32,264.09,14.6781726]
[1737709348792,0.02860745,264.23,264.18,0.02399355]
[1737709348992,3.7853,264.19,264.18,0.02399355]
[1737709349587,3.7862,264.13,264.04,14.6781726]
[1737709350592,0.02777019,264.11,264.08,3.7868]
[1737709350792,4.7919,264.22,264.04,14.6781726]
[1737709351093,4.7919,264.22,264.09,14.6781726]
[1737709351394,0.02802952,264.16,264.09,14.6781726]
[1737709351695,0.02802952,264.16,264.14,3.7859]
[1737709354093,0.02802952,264.16,264.09,14.6781726]
[1737709354094,0.02802952,264.16,264.15,3.7859]
[1737709356098,4.7919,264.31,264.2,3.7851]
[1737709356297,4.7919,264.31,264.2,14.6781726]
[1737709356600,3.7837,264.31,264.23,3.7847]
[1737709356898,7.2871,264.41,264.2,14.6781726]
[1737709357102,3.783,264.36,264.2,14.6781726]
[1737709357397,0.02646673,264.33,264.28,0.0289662]
[1737709357592,3.7836,264.31,264.28,0.0289662]
[1737709357794,0.02646673,264.33,264.28,0.0289662]
[1737709358496,0.02646673,264.33,264.16,14.6781726]
[1737709358693,0.02646673,264.33,264.11,14.6781726]
[1737709358894,3.7844,264.25,264.18,3.7854]
[1737709359201,14.6781726,264.34,264.11,14.6781726]
[1737709359498,3.7851,264.21,264.13,3.786]
[1737709359898,0.02759998,264.2,264.11,14.6781726]
[1737709360093,0.02759998,264.2,264.15,3.7858]
[1737709360498,0.02759998,264.2,264.11,14.6781726]
[1737709362400,0.02759998,264.2,264.14,3.7859]
[1737709362599,0.02759998,264.2,264.11,14.6781726]
[1737709362798,0.02759998,264.2,264.19,3.7853]
[1737709363194,3.7842,264.27,264.16,14.6781726]
[1737709363701,191.0,264.33,264.16,14.6781726]
[1737709363902,11.36,264.43,264.16,14.6781726]
[1737709364198,191.0,264.46,264.16,14.6781726]
[1737709364500,191.0,264.46,264.26,0.02466686]
[1737709364501,0.02891321,264.31,264.26,0.02466686]
[1737709364700,0.02891321,264.31,264.12,3.7862]
[1737709364901,14.6781726,264.35,264.12,3.7862]
[1737709365102,14.6781726,264.35,264.11,14.6781726]
[1737709365901,0.02865817,264.26,264.11,14.6781726]
[1737709366099,3.7856,264.17,264.11,14.6781726]
[1737709366499,3.81406264,264.17,264.11,14.6781726]
[1737709366699,0.02846264,264.17,264.0,127.67605019]
[1737709366906,14.6781726,264.23,264.0,127.67605019]
[1737709367105,0.02777602,264.11,264.0,127.67605019]
[1737709368201,0.02777602,264.11,264.02,3.7877]
[1737709368606,0.02777602,264.11,263.99,14.6781726]
[1737709368801,0.02777602,264.11,264.03,3.7875]
[1737709368999,0.02777602,264.11,263.99,14.6781726]
[1737709369304,0.02777602,264.11,264.04,14.6781726]
[1737709369702,0.02777602,264.11,263.99,14.6781726]
[1737709369907,3.7867,264.09,264.01,3.7878]
[1737709370106,0.02777602,264.11,263.99,14.6781726]
[1737709370404,3.7871,264.07,263.99,14.6781726]
[1737709371108,0.02883294,264.06,263.99,14.6781726]
[1737709371606,0.02883294,264.06,264.03,3.7875]
[1737709371807,0.02883294,264.06,263.99,14.6781726]
[1737709372010,2.4603,264.24,264.04,14.6781726]
[1737709372210,2.4603,264.24,264.06,3.787]
[1737709373203,3.7859,264.16,264.08,3.7868]
[1737709373404,0.02562796,264.18,264.12,0.02740957]
[1737709373605,2.4603,264.24,264.12,0.02740957]
[1737709373809,0.0257496,264.18,264.12,0.02740957]
[1737709374611,3.7859,264.15,264.12,0.02740957]
[1737709375012,0.0257496,264.18,264.12,0.02740957]
[1737709375311,3.7861,264.13,264.12,0.02740957]
[1737709375813,3.787,264.07,264.01,3.7877]
[1737709376111,3.787,264.07,263.98,58.32580488]
[1737709377115,0.02646935,264.05,264.0,3.788]
[1737709377509,3.81376935,264.05,263.98,58.32580488]
[1737709377709,3.81376935,264.05,263.98,62.11400488]
[1737709378111,3.7874,264.04,263.98,58.32580488]
[1737709378315,3.7874,264.04,263.98,19.59246713]
[1737709378714,3.7874,264.04,263.98,4.91429453]
[1737709379913,3.7875,264.04,263.98,4.91429453]
[1737709381616,0.02646935,264.05,263.91,3.7892]
[1737709381617,3.7882,263.99,263.91,3.7892]
[1737709381809,3.7882,263.99,263.88,14.6781726]
[1737709382015,0.0244938,263.96,263.89,0.67367162]
[1737709382216,3.7878,264.02,263.94,3.7888]
[1737709382516,0.02401878,263.95,263.94,3.7888]
[1737709382713,3.7867,264.1,263.93,14.6781726]
[1737709383018,3.7867,264.1,263.87,127.67605019]
[1737709383019,24.5639726,264.2,263.99,14.6781726]
[1737709383416,9.8858,264.2,264.04,14.6781726]
[1737709383819,0.02545094,264.15,264.09,0.02766103]
[1737709384209,3.81135094,264.15,264.09,0.02766103]
[1737709385017,3.7862,264.13,264.09,0.02766103]
[1737709385319,0.02545094,264.15,264.09,0.02766103]
[1737709386514,0.02545094,264.15,264.09,14.70583363]
[1737709386719,7.5298,264.28,264.09,14.70583363]
[1737709386918,3.785,264.21,264.12,3.7862]
[1737709387720,0.02713196,264.19,264.14,0.02524251]
[1737709388119,3.7855,264.18,264.14,0.02524251]
[1737709388312,0.02713196,264.19,264.14,0.02524251]
[1737709389920,0.02713196,264.19,264.14,14.70341511]
[1737709390217,2.4369,264.35,264.14,14.70341511]
[1737709390519,3.7839,264.29,264.14,14.6781726]
[1737709390823,3.7846,264.24,264.15,3.7857]
[1737709391321,0.02476267,264.22,264.17,0.0259563]
[1737709393525,3.7853,264.19,264.17,0.0259563]
[1737709394531,3.7854,264.18,264.17,0.0259563]
[1737709395335,4.948,264.21,264.04,14.6781726]
[1737709395536,2.5992,264.2,264.04,14.6781726]
[1737709396036,3.7864,264.11,264.04,14.6781726]
[1737709396231,3.7864,264.11,264.05,0.02751784]
[1737709396436,0.02389226,264.1,264.05,0.02751784]
[1737709398134,3.787,264.07,264.05,0.02751784]
[1737709399337,0.02389226,264.1,264.0,5.15580925]
[1737709399840,0.02389226,264.1,264.03,3.7875]
[1737709400137,0.02389226,264.1,264.0,5.15580925]
[1737709400636,0.02389226,264.1,264.02,0.02873948]
[1737709401032,4.8697,264.18,264.02,0.02873948]
[1737709401234,3.7876,264.03,263.96,3.7886]
[1737709401728,0.0280943,264.02,263.98,3.7882]
[1737709401932,4.8697,264.18,263.94,14.6781726]
[1737709402132,0.02862906,264.03,263.97,0.02794545]
[1737709402333,0.02862906,264.03,264.02,3.7877]
[1737709402536,4.8697,264.18,263.99,14.6781726]
[1737709402830,3.7857,264.17,264.09,3.7867]
[1737709403237,3.7857,264.17,264.04,14.6781726]
[1737709403238,4.8697,264.18,264.04,14.6781726]
[1737709403433,8.6552,264.18,264.08,3.7868]
[1737709403630,4.8697,264.18,264.08,3.7868]
[1737709403834,0.02760119,264.16,264.1,0.0286465]
[1737709404034,3.7859,264.15,264.1,0.0286465]
[1737709405533,3.786,264.14,264.1,0.0286465]
[1737709405734,0.02760119,264.16,264.1,0.0286465]
[1737709407739,3.7864,264.11,264.1,0.0286465]
[1737709408538,3.7864,264.11,264.02,3.7876]
[1737709408539,0.02760119,264.16,263.99,14.6781726]
[1737709408738,3.7869,264.08,264.0,3.7879]
[1737709408938,4.8697,264.18,263.95,127.67605019]
[1737709409134,3.7876,264.03,263.96,3.7885]
[1737709409335,14.6781726,264.15,263.94,14.6781726]
[1737709409840,0.02655701,264.07,264.02,0.02674236]
[1737709410245,3.7876,264.03,264.02,0.02674236]
[1737709412439,4.8055,264.06,263.93,6.6767532]
[1737709412741,2.4529,264.05,263.91,3.7892]
[1737709412936,3.7882,263.99,263.89,14.6781726]
[1737709413137,2.4529,264.05,263.89,14.6781726]
[1737709413637,3.789,263.94,263.89,14.6781726]
[1737709414344,0.02444429,263.96,263.94,3.7888]
[1737709414544,2.4093,264.04,263.89,14.6781726]
[1737709414839,0.02513944,263.98,263.89,14.6781726]
[1737709415341,3.7886,263.97,263.89,14.6781726]
[1737709416444,0.02513944,263.98,263.89,14.6781726]
[1737709416646,0.02513944,263.98,263.93,6.71505301]
[1737709417047,0.02513944,263.98,263.95,3.7886]
[1737709417544,0.02513944,263.98,263.93,6.71505301]
[1737709417747,0.02513944,263.98,263.94,3.7889]
[1737709417947,0.02513944,263.98,263.93,6.71505301]
[1737709418148,3.81353944,263.98,263.93,6.71263758]
[1737709418449,0.02513944,263.98,263.93,6.71263758]
[1737709419455,3.81353944,263.98,263.93,6.71263758]
[1737709419649,0.02513944,263.98,263.93,6.71263758]
[1737709419848,0.02513944,263.98,263.88,14.68607136]
[1737709420245,3.7886,263.96,263.89,3.7895]
[1737709420548,3.7886,263.96,263.9,9.24028203]
[1737709422254,3.7886,263.96,263.92,489.0]
[1737709422957,0.02513944,263.98,263.92,489.0]
[1737709424056,3.7887,263.95,263.92,489.0]
[1737709426560,0.02513944,263.98,263.92,489.0]
[1737709427955,3.7884,263.97,263.92,489.0]
[1737709428857,0.02513944,263.98,263.92,489.0]
[1737709429158,3.789,263.93,263.92,489.0]
[1737709431059,3.789,263.93,263.92,464.30209192]
[1737709432857,0.02513944,263.98,263.86,0.32629]
[1737709433053,3.7899,263.87,263.86,0.32629]
[1737709433458,3.7886,263.96,263.86,0.32629]
[1737709433659,0.02607754,263.89,263.86,0.32629]
[1737709433859,9.24028203,264.0,263.86,0.32629]
[1737709434359,3.7899,263.87,263.86,0.32629]
[1737709435159,0.02543383,263.89,263.86,0.32629]
[1737709436860,3.81503383,263.89,263.86,0.32629]
[1737709437462,0.02543383,263.89,263.86,0.32629]
[1737709439060,3.81503383,263.89,263.86,0.32629]
[1737709440163,3.7899,263.87,263.86,0.32629]
[1737709441961,0.02543383,263.89,263.86,0.32629]
[1737709442358,13.02848203,263.99,263.86,0.32629]
[1737709442562,9.24028203,263.99,263.86,0.32629]
[1737709442964,3.789,263.94,263.86,0.32629]
[1737709443164,9.24028203,263.99,263.86,0.32629]
[1737709443358,9.24028203,263.95,263.86,0.32629]
[1737709443560,9.26512448,263.95,263.9,0.02485906]
[1737709443765,3.7894,263.91,263.9,0.02485906]
[1737709445267,3.7899,263.87,263.86,0.32629]
[1737709446367,0.02660169,263.89,263.86,0.32629]
[1737709446565,9.24028203,263.95,263.86,0.32629]
[1737709446766,0.02705295,263.9,263.86,4.11619]
[1737709447067,0.02705295,263.9,263.86,0.32629]
[1737709448169,0.02705295,263.9,263.87,3.7898]
[1737709448364,0.02705295,263.9,263.86,0.32629]
[1737709450069,3.81655295,263.9,263.86,0.32629]
[1737709451766,3.7899,263.87,263.86,0.32629]
[1737709457269,3.7897,263.89,263.86,0.32629]
[1737709457670,0.02705295,263.9,263.86,0.32629]
[1737709459171,0.02705295,263.9,263.86,4.11619]
[1737709459372,0.02705295,263.9,263.86,0.32629]
[1737709459968,9.24028203,264.03,263.86,0.32629]
[1737709460169,9.24028203,264.03,263.86,464.62838192]
[1737709460471,3.7882,263.99,263.91,3.7893]
[1737709460874,9.24028203,263.99,263.87,6.73063462]
[1737709461274,0.02696042,263.96,263.9,0.02732553]
[1737709465172,3.81556042,263.96,263.9,0.02732553]
[1737709465376,0.02696042,263.96,263.9,0.02732553]
[1737709466775,3.789,263.93,263.9,0.02732553]
[1737709467867,3.7893,263.91,263.9,0.02732553]
[1737709469173,9.24028203,263.91,263.86,464.62838192]
[1737709469475,3.7899,263.87,263.86,464.62838192]
[1737709470270,3.7913,263.77,263.76,0.84555294]
[1737709470574,9.24028203,263.81,263.74,122.20370313]
[1737709470877,191.0,264.09,263.74,122.20370313]
[1737709470878,0.02896982,263.79,263.74,122.20370313]
[1737709471072,13.03048203,263.85,263.74,122.20370313]
[1737709471274,0.027953,263.79,263.74,122.20370313]
[1737709471973,0.027953,263.79,263.74,125.99540313]
[1737709472276,0.027953,263.79,263.74,122.20370313]
[1737709473075,0.027953,263.79,263.72,7.2803]
[1737709473377,0.027953,263.79,263.69,2.5861]
[1737709473878,0.027953,263.79,263.74,3.7917]
[1737709474078,0.027953,263.79,263.69,2.5861]
[1737709474380,3.819053,263.79,263.69,2.5861]
[1737709474576,0.027953,263.79,263.69,2.5861]
[1737709474775,0.027953,263.79,263.65,7.8452]
[1737709475078,3.7915,263.76,263.65,7.8452]
[1737709475577,0.027953,263.79,263.65,7.8452]
[1737709476279,0.027953,263.79,263.67,323.32752238]
[1737709476280,3.7912,263.78,263.67,323.32752238]
[1737709477078,0.027953,263.79,263.74,3.7917]
[1737709477279,9.26823503,263.79,263.67,323.32752238]
[1737709477673,3.7917,263.75,263.67,327.12022238]
[1737709477878,9.24028203,263.79,263.67,327.12022238]
[1737709478079,0.02560959,263.74,263.67,327.12022238]
[1737709478385,0.02560959,263.74,263.67,323.32752238]
[1737709480581,3.7922,263.71,263.67,323.32752238]
[1737709481387,3.792,263.73,263.67,327.12022238]
[1737709481685,0.02560959,263.74,263.67,323.32752238]
[1737709482086,3.7919,263.73,263.67,327.12022238]
[1737709482286,3.7919,263.73,263.67,323.32752238]
[1737709482485,0.02560959,263.74,263.67,323.32752238]
[1737709482790,9.24028203,263.83,263.68,7.8172]
[1737709483783,4.46149535,263.94,263.67,323.32752238]
[1737709483784,9.24028203,263.79,263.67,323.32752238]
[1737709484083,9.24028203,263.75,263.73,1.178e-05]
[1737709484287,3.7917,263.74,263.73,1.178e-05]
[1737709484479,9.24028203,263.75,263.67,317.55413416]
[1737709484686,9.24028203,263.71,263.67,317.55413416]
[1737709485286,3.7926,263.68,263.67,317.55413416]
[1737709487993,3.82112436,263.7,263.67,317.55413416]
[1737709488698,3.7925,263.69,263.67,317.55413416]
[1737709489300,0.02872436,263.7,263.67,317.55413416]
[1737709489494,3.7926,263.68,263.67,317.55413416]
[1737709490694,0.02872436,263.7,263.57,2.5356]
[1737709490695,3.7928,263.67,263.57,2.5356]
[1737709490900,9.24028203,263.71,263.57,2.5356]
[1737709491201,3.7932,263.64,263.57,2.5356]
[1737709491399,3.7932,263.64,263.59,3.7939]
[1737709491591,0.02629429,263.65,263.57,2.5356]
[1737709493102,0.02629429,263.65,263.6,3.7936]
[1737709494303,9.24028203,263.75,263.59,9.24028203]
[1737709495002,3.7922,263.71,263.64,3.7932]
[1737709495401,0.02494166,263.7,263.65,0.02666408]
[1737709496002,3.7926,263.68,263.65,0.02666408]
[1737709496604,3.7928,263.67,263.65,0.02666408]
[1737709496802,0.02494166,263.7,263.65,0.02666408]
[1737709497104,3.7929,263.67,263.65,0.02666408]
[1737709497401,0.02494166,263.7,263.65,0.02666408]
[1737709498602,3.81724166,263.7,263.65,0.02666408]
[1737709498902,0.02494166,263.7,263.65,0.02666408]
[1737709499499,3.7926,263.68,263.65,0.02666408]
[1737709499801,0.02494166,263.7,263.65,0.02666408]
[1737709501398,3.81724166,263.7,263.65,0.02666408]
[1737709502602,3.7926,263.68,263.65,0.02666408]
[1737709504308,3.7927,263.68,263.65,0.02666408]
[1737709504803,3.81734166,263.7,263.65,0.02666408]
[1737709505005,0.02494166,263.7,263.65,0.02666408]
[1737709505304,3.7929,263.66,263.65,0.02666408]
[1737709505695,0.02494166,263.7,263.65,0.02666408]
[1737709506904,3.7929,263.67,263.65,0.02666408]
[1737709507705,0.02494166,263.7,263.65,0.02666408]
[1737709507906,3.7926,263.69,263.65,0.02666408]
[1737709508106,0.02494166,263.7,263.65,0.02666408]
[1737709509097,3.7926,263.68,263.65,0.02666408]
[1737709510003,0.02494166,263.7,263.65,0.02666408]
[1737709510209,191.0,263.75,263.69,5.81760663]
[1737709510807,191.0,263.75,263.69,9.61000663]
[1737709511008,156.51720663,263.84,263.72,5.81760663]
[1737709511206,150.6996,263.83,263.76,5.81760663]
[1737709511406,0.02813513,263.81,263.76,5.81760663]
[1737709511611,0.02813513,263.81,263.76,9.60900663]
[1737709511907,0.02813513,263.81,263.76,9.6028112]
[1737709512101,0.02813513,263.81,263.78,3.7912]
[1737709512704,0.02813513,263.81,263.76,5.8114112]
[1737709512909,0.02813513,263.81,263.79,3.791]
[1737709513207,146.7062,263.9,263.79,9.25052856]
[1737709513909,146.7062,263.9,263.83,9.25052856]
[1737709514304,0.02740128,263.89,263.84,0.02425096]
[1737709515309,0.02740128,263.89,263.87,3.7898]
[1737709515503,146.7062,263.9,263.84,0.02425096]
[1737709515707,142.7133,263.9,263.87,9.25052856]
[1737709515904,138.7515,263.9,263.87,9.25052856]
[1737709516114,138.7515,263.9,263.88,3.7896]
[1737709516913,0.02671032,263.92,263.87,9.25052856]
[1737709517214,0.02671032,263.92,263.91,13.03982856]
[1737709517512,3.7875,264.04,263.91,9.25052856]
[1737709517709,138.7515,264.05,263.91,9.25052856]
[1737709517910,3.7881,264.0,263.91,9.25052856]
[1737709518617,0.02521278,263.98,263.93,0.02626407]
[1737709520917,0.02521278,263.98,263.94,3.7889]
[1737709521718,0.02521278,263.98,263.93,0.02626407]
[1737709522318,0.02521278,263.98,263.95,9.25052856]
[1737709522512,0.02521278,263.98,263.97,3.7884]
[1737709522712,138.7515,264.05,263.95,9.25052856]
[1737709522913,138.7515,264.05,264.02,3.7877]
[1737709523313,138.7515,264.05,264.0,9.25052856]
[1737709524017,138.77687314,264.05,264.0,9.27759019]
[1737709524318,138.77687314,264.05,264.0,0.02706163]
[1737709524817,3.7879,264.01,264.0,0.02706163]
[1737709528717,3.7889,263.94,263.88,9.25052856]
[1737709528917,3.7889,263.94,263.87,3.7898]
[1737709529215,191.0,264.0,263.86,2.4377]
[1737709529623,191.0,263.99,263.86,2.4377]
[1737709529919,9.25052856,263.93,263.76,9.25052856]
[1737709530221,9.25052856,263.89,263.72,9.25052856]
[1737709530423,3.7909,263.8,263.73,0.67909002]
[1737709530720,191.0,263.88,263.72,9.25052856]
[1737709531021,3.7909,263.8,263.72,9.25052856]
[1737709531211,191.0,263.87,263.77,0.0271372]
[1737709531212,0.02835823,263.83,263.77,0.0271372]
[1737709532521,0.02835823,263.83,263.78,3.7912]
[1737709532719,0.02835823,263.83,263.8,9.25052856]
[1737709534115,0.02835823,263.83,263.81,3.7907]
[1737709537026,0.02835823,263.83,263.77,0.0271372]
[1737709537926,0.02835823,263.83,263.8,3.7909]
[1737709538117,0.02835823,263.83,263.77,0.0271372]
[1737709539029,0.02835823,263.83,263.78,3.7911]
[1737709539230,0.02835823,263.83,263.77,0.0271372]
[1737709539621,0.02835823,263.83,263.77,3.8184372]
[1737709539826,0.02835823,263.83,263.77,0.0271372]
[1737709540831,3.7909,263.8,263.77,0.0271372]
[1737709541133,0.02835823,263.83,263.77,0.0271372]
[1737709542135,3.7908,263.81,263.77,0.0271372]
[1737709543633,3.7908,263.81,263.73,3.7919]
[1737709543931,191.0,263.8,263.73,3.7919]
[1737709544132,191.0,263.8,263.72,9.25052856]
[1737709544331,191.0,263.8,263.74,3.7917]
[1737709544828,191.0,263.8,263.74,3.81831555]
[1737709545029,191.0,263.8,263.76,3.7914]
[1737709545230,191.0,263.8,263.74,0.02661555]
[1737709546034,191.0,263.8,263.76,3.7913]
[1737709546730,191.0,263.8,263.76,9.25052856]
[1737709547034,191.0,263.8,263.79,3.791]
[1737709547230,191.0,263.8,263.76,9.25052856]
[1737709547434,191.0,263.8,263.74,0.02661555]
[1737709548035,191.0,263.8,263.75,3.7916]
[1737709548836,191.0,263.8,263.74,0.02661555]
[1737709549138,191.0,263.8,263.78,3.7912]
[1737709549339,191.0,263.8,263.76,9.25052856]
[1737709549639,191.0,263.8,263.79,3.791]
[1737709550036,0.02835823,263.83,263.79,3.791]
[1737709550641,0.02835823,263.83,263.78,3.7912]
[1737709550842,0.02835823,263.83,263.76,9.25052856]
[1737709551343,0.02835823,263.83,263.76,13.04192856]
[1737709551543,0.02835823,263.83,263.76,9.25052856]
[1737709551944,0.02835823,263.83,263.74,0.02661555]
[1737709552639,0.02835823,263.83,263.74,3.81831555]
[1737709553545,0.02835823,263.83,263.75,3.7916]
[1737709553842,0.02835823,263.83,263.74,0.02661555]
[1737709554035,3.7909,263.8,263.74,0.02661555]
[1737709554540,0.02835823,263.83,263.74,0.02661555]
[1737709554937,3.791,263.8,263.74,0.02661555]
[1737709556638,194.7907,263.82,263.75,3.7915]
[1737709556839,191.0,263.82,263.74,0.02661555]
[1737709557436,191.0,263.82,263.76,3.7914]
[1737709557740,191.0,263.82,263.74,0.02661555]
[1737709557934,194.7907,263.82,263.76,3.7914]
[1737709558141,191.0,263.82,263.74,0.02661555]
[1737709558341,191.0,263.82,263.76,9.25052856]
[1737709558538,191.0,263.82,263.81,3.7907]
[1737709558737,0.02835823,263.83,263.81,3.7907]
[1737709559943,0.02835823,263.83,263.82,3.7906]
[1737709560944,2.5693,263.93,263.87,3.7899]
[1737709561345,2.5693,263.93,263.85,9.25052856]
[1737709561747,191.0,263.94,263.89,9.25052856]
[1737709562040,191.0,263.94,263.89,9.27503816]
[1737709562245,191.02881604,263.94,263.89,9.27503816]
[1737709563443,0.02881604,263.94,263.89,9.27503816]
[1737709563745,0.02881604,263.94,263.92,3.7891]
[1737709566050,0.02881604,263.94,263.91,3.7893]
[1737709567043,0.02881604,263.94,263.89,9.27503816]
[1737709567849,0.02881604,263.94,263.93,13.03952856]
[1737709568150,2.4914,264.07,263.93,9.25052856]
[1737709568350,2.4914,264.07,264.02,3.7877]
[1737709568649,2.4914,264.07,264.0,9.25052856]
[1737709568843,2.4914,264.07,264.02,3.7876]
[1737709569039,191.0,264.1,264.0,9.25052856]
[1737709569241,0.02579421,264.07,264.02,0.02426961]
[1737709569441,0.02579421,264.07,264.04,3.7874]
[1737709569848,0.02579421,264.07,264.02,0.02426961]
[1737709571652,3.7873,264.05,264.02,0.02426961]
[1737709571953,0.02579421,264.07,264.02,0.02426961]
[1737709572150,3.7872,264.06,264.02,0.02426961]
[1737709573648,0.02579421,264.07,264.02,0.02426961]
[1737709574050,0.02579421,264.07,264.04,3.7874]
[1737709574251,0.02579421,264.07,264.02,0.02426961]
[1737709574649,0.02579421,264.07,264.05,3.7872]
[1737709574952,0.02579421,264.07,264.02,0.02426961]
[1737709576951,3.7873,264.05,264.02,0.02426961]
[1737709577549,0.02579421,264.07,263.85,20.49002306]
[1737709577750,191.0,264.06,263.85,343.94085722]
[1737709577950,196.8336,264.05,263.86,10.81946947]
[1737709578159,3.7892,263.92,263.85,327.22468775]
[1737709578457,191.0,264.04,263.86,9.67055359]
[1737709578652,191.0,264.03,263.86,9.67055359]
[1737709578855,0.02570043,263.98,263.92,0.02818937]
[1737709579054,0.02570043,263.98,263.85,317.55413416]
[1737709580355,0.02570043,263.98,263.89,0.02505184]
[1737709580659,3.7888,263.95,263.89,0.02505184]
[1737709581259,3.7885,263.97,263.9,3.7894]